Workbook

Sheet Process
A1: RFP Assessment Process
A2: Step 1 | B2: Business and Group IT Assessment :
B3: (Business Score 60%) A threshold of 60% will be considered meeting the minimum requirement.
B4: (Group IT - Non Functional (Technical) Score 20%). A threshold of 70% will be considered meeting the minimum requirement.
B5: (Group IT - Integration & Testing Score 20%) A threshold of 70% will be considered meeting the minimum requirement
A6: Step 2 | B6: Demonstrations of products
A7: Step 3 | B7: Final score is made up 60% RFP response score and 40% product demonstration score
A8: Step 4 | B8: Rank products and compile report

Sheet Scoring
A1: Scoring 1 | B1: Scores
A3: Functional Evalution | B3: ='Func Evaluation'!H77 -> 60%
A4: Non-Functional Evaluation | B4: 20%
A5: Integration & Testing | B5: 20%

Sheet Func Evaluation
B1: CONTRACT MANAGEMENT SYSTEM SOLUTION | H1: REVISION | I1: 1
B2: TECHNICAL EVALUATION CRITERIA
A3: PART A - DESK TOP TECHNICAL EVALUATION
A4: Item | B4: Description | D4: Criteria & Measure | E4: Maximum Score Achievable | F4: Tenderer's Response | G4: Assessed Score | H4: Weight | I4: Weighted Score
A5: 1 | B5: System Users | F5: Enter number | I5: =H6*G6 -> 15.00%
B6: The users will include IT Administrators, Super users and users with deferent Access Rights. The Tenderer to provide proof of solution capacity in terms of number of users. | D6: >Unlimited | E6: 100% | F6: Unlimited | G6: =IF(F6<=100,20%,IF(F6<=500,40%,IF(F6<=1000,60%,IF(F6<=1999,80%,IF(F6="Unlimited",100%,0))))) -> 100% | H6: 15%
D7: <1999 | E7: 80%
D8: <1000 | E8: 60%
D9: <500 | E9: 40%
D10: <100 | E10: 20%
A12: 2 | B12: Solution Compatibility | F12: Select Options | I12: =H13*G13 -> 6.0%
B13: The system is expected to link with existing system to avoid duplication of efforts wrt data inputs. The tenderer is expected to confirm which systems or programme are compatible with the solution. | D13: SAP MM | E13: =100%/COUNTA($D$13:$D$22) -> 10% | F13: Compatible | G13: =IF(SUMIF(F13:F22,"=Compatible ",E13:E22)>100%,"Error",SUMIF(F13:F22,"=Compatible ",E13:E22)) -> 60% | H13: 10%
D14: SAP FI/PS | E14: 10% | F14: Compatible
D15: WIN QS | E15: 10% | F15: Compatible
D16: MS OFFICE | E16: 10% | F16: Compatible
D17: SharePoint | E17: 10% | F17: Compatible
D18: PRISMG2 | E18: 10% | F18: Compatible
D19: CURA | E19: 10%
D20: Open Text | E20: 10%
D21: PRIMAVERA P6 | E21: 10%
D22: Other | E22: 10%
A24: 3 | B24: Accessibility | F24: Select Options | I24: =H25*G25 -> 4.50%
B25: The tenderer to submit proof of the solution's accessibility offline and or online, and the extent which data, information or records can be uploaded and or updated. | D25: Online (Full Access) | E25: 70% | F25: Compatible | G25: =SUMIF(F25:F27,"=Compatible ",E25:E27) -> 90% | H25: 5%
D26: Offline (Full Access) | E26: 30%
D27: Offline (Partial Access) | E27: 20% | F27: Compatible
A29: 4 | B29: System and Data Security | F29: Select Options | I29: =H30*G30 -> 8.00%
B30: The tenderer to submit proof of the solution's security capability and capacity. | D30: Cyber Security (Hacker Proof) | E30: 20% | F30: Compatible | G30: =SUMIF(F30:F34,"=Compatible ",E30:E34) -> 80% | H30: 10%
D31: Data Security | E31: 20% | F31: Compatible
D32: Login Password Protection | E32: 20% | F32: Compatible
D33: Concurrent multiple users security | E33: 20%
D34: User type Access Rights restrictions | E34: 20% | F34: Compatible
A35: 5 | B35: Data Storage | F35: Select 1 Options | I35: =H36*G36 -> 6.00%
B36: The tenderer to submit proof of system storage capability and capacity. And flexibility to backup data to local storage facility | D36: Both Cloud and local | E36: 100% | G36: =IF((SUMIF(F36:F39,"=Compatible ",E36:E39))>100%,"Error",(SUMIF(F36:F39,"=Compatible ",E36:E39))) -> 60% | H36: 10%
D37: Local Storage Only | E37: 80%
D38: Cloud Storage Only | E38: 60% | F38: Compatible
A40: 6 | B40: Contract Monitoring and Reporting | F40: Select Options | I40: =H41*G41 -> 6.00%
B41: The solutions must have the contract monitoring and report generating functionality. The Tenderer must submit proof of the solution's capability and capability to generate contract related reports, notify users on outstanding information or date, mandatory fields, data integrity, revision control and changes effected. | D41: Customised Reporting | E41: 20% | F41: Compatible | G41: =IF((SUMIF(F41:F46,"=Compatible ",E41:E46))>100%,"Error",(SUMIF(F41:F46,"=Compatible ",E41:E46))) -> 60% | H41: 10%
D42: Various Contract Registers | E42: 20% | F42: Compatible
D43: Time Analysis | E43: 20% | F43: Compatible
D44: User Notifications and reminders system | E44: 20%
D45: Workflow Assignment and notification | E45: 20%
H47: =SUM(H5:H46) -> 60%
A48: Minimum Sub Total Weighted Average Score ≥ 60% is required for items 1 to 7 above before tenderers will be considered for Part B Demonstration Technical Evaluation in item 8. | G48: =IF(I48>60%,"Total Sub-Weighted Score Recommended","Total Sub-Weighted Score Not Recommended") -> Total Sub-Weighted Score Not Recommended | I48: =SUM(I5:I46) -> 45.5%
A52: PART B - DEMONSTRATION TECHNICAL EVALUATION
A53: 8 | B53: Solution Capacity and Capability Live Demonstration | F53: Select Options | I53: =H54*G54 -> 13.8%
G54: =IF(SUMIF(F55:F71,"=Compatible ",E55:E71)>100%,"Error",SUMIF(F55:F71,"=Compatible ",E55:E71)) -> 69% | H54: 20%
A55: 1 | B55: Demonstrate Information/data Migration | C55: Seamless migration of data from all existing Contract Management System into equivalent submodules of new system. This should include all metadata, “links” and attachments via hyperlinks to Document Record Management (DRM)database. | E55: =100%/COUNTA($C$55:$C$71) -> 6% | F55: Compatible
A56: 2 | B56: User interface Functionality | C56: Be able to display an orientation framework within the project as a whole, to the user. (Note: since many of the projects are large, complex structured hierarchies of information, users will need the system to highlight where in the hierarchy they are working) | E56: 6% | F56: Compatible
A57: 3 | C57: Have a common look and feel across all modules | E57: 6% | F57: Compatible
A58: 4 | C58: Have a Graphical User Interface (GUI) with capabilities such as drag and drop, cut and paste, dock-able to open multiple windows, and dual screen viewing | E58: 6% | F58: Compatible
A59: 5 | C59: Browser support (specifically – Microsoft Edge and/or Mozilla Firefox, as per Eskom standards) | E59: 6% | F59: Not Compatible
A60: 6 | C60: Drill-down/drill-up functionality between levels of detail | E60: 6% | F60: Compatible
A61: 7 | C61: Maintain relationships in HTML via hyperlinks (if browser/web based, the system should allow for navigation through the system and project(s) hierarchies by the use of Hyperlinks) | E61: 6% | F61: Compatible
A62: 8 | B62: System Integration requirements | C62: Ability to integrate with Vendor/procurement info from SAP (Export information from SAP into solution) | E62: 6% | F62: Not Compatible
A63: 9 | C63: Ability to access the draft contract records by clicking on the link that directs the user to SharePoint | E63: 6% | F63: Not Compatible
A64: 10 | B64: System Performance requirements | C64: Support remote access via Eskom network for instance via Citrix (which is an Eskom standard) | E64: 6% | F64: Compatible
A65: 11 | C65: Synchronize offline and online information, (e.g. An exported cost structure once the user is online again). Solution provider to specify how the synchronization will occur if there are changes to the structure between initial and off-line | E65: 6% | F65: Compatible
A66: 12 | C66: Operate at the same performance as 1 user accessing the repository and if there are up to 100 users accessing the same repository (if the recommended infrastructure and bandwidth is in place) | E66: 6% | F66: Compatible
A67: 13 | B67: Security requirements | C67: The System should provide for password protection as per Eskom’s logical access control standards. Users should be able to log in and out using Eskom usernames and passwords (as defined in MS Active Directory) | E67: 6% | F67: Not Compatible
A68: 14 | C68: The System should allow users to be restricted to only having access to specific contracts, based on the setup and configuration of roles and user groups, and assignment of these to users by the System Administrator | E68: 6% | F68: Not Compatible
A69: 15 | C69: Access rights must align with user role - Programme Manager; Project Manager; Contract Manager; Contract Administrator; Contract Specialist; DRM Manager; DRM officer | E69: 6% | F69: Compatible
A70: 16 | B70: Demonstrate User Training programme | C70: Comprehensive System Administrator training, Comprehensive Tactical Rollout Resource training, Comprehensive User training for new users, Managers training, Introduction to new system training (high level overview). | E70: 6% | F70: Compatible
H72: =SUM(H54) -> 20%
A73: Total Weighted Average Score ≥ 70% is required for items 1 to 8 above for a tenderer to be declared Technically Compliant. | G73: =IF(I73>60%,"Total Weighted Score Recommended","Total Weighted Score Not Recommended") -> Total Weighted Score Not Recommended | I73: =SUM(I48,I53) -> 59.3%
H77: =SUM(,H47) -> 60%

Sheet Non Functional (Technical)
C1: Item # | D1: Question | E1: Answer Rating | F1: Max score
C2: Deployment
B3: Deployment | C3: 1 | D3: Can your application be deployed on-premise? | E3: 5= Yes 0 = No | F3: 5
C4: 2 | D4: What is the solution footprint in South Africa | E4: 5= Large (more than 10 sites) 3 = Medium (3-10 sites) 0 = Small (0-3 sites) | F4: 5
C5: 3 | D5: What are the licencing options / models available | E5: 0 = Best fit for Eskom requirements 0= Partial fit for Eskom requirements 0 = No fit for Eskom requirements | F5: 0
C6: 4 | D6: Provide a diagram showing all the components required for an on premise deployment of your solution. Include all components required for the update of information. | E6: 3 = Diagram that includes all components as per submission and that is complete 1 = Diagram that excludes any components mentioned in submission or that is not complete from an architecture perspective, i.e. does not show the full solution or there are evidently components missing 0 = No diagram provided | F6: 3
C7: 5 | D7: Describe the scalability options for your solution. | E7: 2 = Evidence provided of the solution scalability 0 = No evidence provided of the solution scalability | F7: 2
C8: 6 | D8: List all databases (including their versions) that are supported by your solution? List all | E8: 3 = Complies with Eskom standards 1 = Complies with standard technology, but version is not standardised, only if that version is a newer version than the standard or a version that is still under support and the vendor has an upgrade path 0 = Does not comply with Eskom standards | F8: 3
C9: 7 | D9: List all the operating systems (including their versions) that your application is compatible with? List all | E9: 3 = Complies with Eskom standards 1 = Complies with standard technology, but version is not standardised, only if that version is a newer version than the standard or a version that is still under support and the vendor has an upgrade path 0 = Does not comply with Eskom standards | F9: 3
C10: Hosting & Cloud
B11: Hosting & Cloud | C11: 8 | D11: What assurance as a cloud provider will be provided to Eskom? Describe in terms of security policy/framework approach, business continuity | E11: 3 - full security for confidentiality, integrity and availability of data 1 - security controls in place, but gaps exist 0 -none | F11: 3
C12: 9 | D12: Does Eskom owns the data and IP of all the work done on the software platform and has the right to access the information as well as export the information into any other Eskom environment it deems fit? | E12: Yes = 3 No = 0 | F12: 3
C13: 10 | D13: List all hosting & cloud options available for your application. | E13: 3 = Fully aligned to Eskom's cloud strategy 2 = Partially aligned to Eskom's cloud strategy 1 = No alignment to Eskom's cloud strategy | F13: 3
C14: Platform & Integration
B15: Platform & Integration | C15: 11 | D15: List the web and/or application server technologies and versions that are required for your solution. If options are available, clearly indicate it. | E15: 3 = Complies with Eskom standards 1 = Complies with standard technology, but version is not standardised, only if that version is a newer version than the standard or a version that is still under support and the vendor has an upgrade path 0 = Does not comply with Eskom standards | F15: 3
C16: 12 | D16: Describe the technologies and protocols that your solution can use to integrate with other systems. List all | E16: 3 = Complies with Eskom standards 0 = Does not comply with Eskom standards | F16: 3
C17: 13 | D17: Have you integrated with any 3rd party applications before? Please list details. | E17: 3 = Yes, list of integrated applications provided 1 = Yes, any integration experience (other than AD, MS Exchange) 0 = No | F17: 3
C18: 14 | D18: Does your solution integrate with Microsoft Exchange? | E18: 3 = Yes 0 = No | F18: 3
C19: 15 | D19: Does your solution require any add-on to Microsoft Outlook in order to work? | E19: 3 = No 0 = Yes | F19: 3
C20: 16 | D20: Describe how your solution supports SOA? | E20: 3 = Well supported (API and Webservices available and/or customisable) 1 = Partially supported (limited APIs and Webservice support) 0 = Not supported | F20: 3
C21: 17 | D21: What is the sytem availability and does it form part of the SLA? | E21: 3 = high availibility >= 99.5% and in SLA . 1 = assurance of high availability (i.e explains technical solution) but not specified in SLA or less than 99.5%. 0 - very little, or no assurance of availability | F21: 3
C22: Security & Access Mngt
B23: Security & Access Mngt | C23: 18 | D23: Describe how logical access management is done. | E23: 3 = IAM in Place 0 = No IAM in Place | F23: 3
C24: 19 | D24: Can your solution authenticate against either Microsoft Active Directory or LDAP? If so, please indicate which. | E24: 3 = Yes, AD 1 = Yes, LDAP only 0 = Neither | F24: 3
C25: 20 | D25: Describe what mechanisms are in place to secure the link to update content? | E25: 3 = Secure Link in Place 0 = No Secure Link in Place | F25: 3
C26: 21 | D26: Is content scanned before update to ensure there is no malicious code present? | E26: 3 = Security measures / Anti-Malware in Place 0 = No Security measures / Anti-Malware | F26: 3
C27: 22 | D27: What reports will be made available on security controls/Backups and system availability and other Cobit Control objectives | E27: 3 = audit reports provided periodically 1 = reports provided on request, 0 - none | F27: 3
C28: Content Mngt
B29: Content Mngt | C29: 23 | D29: Does your solution require customisation or configuration in order to meet requirement? If customisation is required, Specify if it is more than 10% or less than Provide detailed list of features that needs to be customized | E29: 3 = Configuration < 1% 1 = Customisation < 1-10% 0 = Customisation > 10 % | F29: 3
C30: 24 | D30: Is data updated via push or pull? Is your system able to do 'Pull Based', 'Push Based', 'Search in place' or all of these? List all capabilities. | E30: Real/near real time data required: 3 = Push and Search in Place 1 = Push only 0 = Pull only | F30: 3
C31: 25 | D31: List how your solution caters for people that are visually or audibly impaired? | E31: 3 = Mechanisms available 0 = No mechanisms available | F31: 3
F33: =SUM(F3:F31) -> 75
D34: A threshold of 70% will be considered meeting the minimum requirement.

Sheet Integration & Testing
A2: MWPxxxxCX Tender | K2: Scoring (Sliding scale)
A3: Tenderer: | K3: 100% - Fully compliant
A4: Evaluated by: | K4: 50%-Partially compliant
K5: 0%-Non compliance
G6: Priority and Weight | J6: Score (determined by each evaluation team member during evaluation. Will be averaged for final scores) | K6: Score
A7: ID | B7: Type | C7: Category | D7: Criterion | E7: Functional Requirement | F7: Requirement description | G7: Priority Description | H7: Priority | I7: Weighted Question | J7: Scoring | K7: Answer (0,50,100%) | L7: Weighted Answer | M7: Comments
A9: 1 | B9: Meeting the Scope of Work Required | C9: Non Functional | D9: Previous involvement in the end to end testing of a similar system and methodologies used) | E9: Testing | F9: Provide reference customers and sites | G9: Very important | H9: =IF(G9='[2]Priority Ratings'!$C$21,'[2]Priority Ratings'!$B$21,IF(G9='[2]Priority Ratings'!$C$22,'[2]Priority Ratings'!$B$22,IF(G9='[2]Priority Ratings'!$C$23,'[2]Priority Ratings'!$B$23,IF(G9='[2]Priority Ratings'!$C$24,'[2]Priority Ratings'!$B$24,IF(G9='[2]Priority Ratings'!$C$25,'[2]Priority Ratings'!$B$25,IF(G9='[2]Priority Ratings'!$C$26,'[2]Priority Ratings'!$B$26,IF(G9='[2]Priority Ratings'!$C$27,'[2]Priority Ratings'!$B$27,"No Rating"))))))) -> 4 | J9: 100%: Fully comply with requirement 50%: Partially comply(Have experience but not a similar system) 0%: No experience | K9: 0%+K9K9:K15 | L9: =I9*K9 -> 
A10: 2 | B10: Team Organisation and Member Requirements | C10: Non Functional | D10: Resource model. It is a requirement that sufficient dedicated testers are allocated the project, independent of the development team. Team members have the required ISTQB testing certifications (Provide Certifications of team members) | E10: Testing | F10: Experienced Test Manger must be provided | G10: Very important | H10: =IF(G10='[2]Priority Ratings'!$C$21,'[2]Priority Ratings'!$B$21,IF(G10='[2]Priority Ratings'!$C$22,'[2]Priority Ratings'!$B$22,IF(G10='[2]Priority Ratings'!$C$23,'[2]Priority Ratings'!$B$23,IF(G10='[2]Priority Ratings'!$C$24,'[2]Priority Ratings'!$B$24,IF(G10='[2]Priority Ratings'!$C$25,'[2]Priority Ratings'!$B$25,IF(G10='[2]Priority Ratings'!$C$26,'[2]Priority Ratings'!$B$26,IF(G10='[2]Priority Ratings'!$C$27,'[2]Priority Ratings'!$B$27,"No Rating"))))))) -> 4 | J10: 100%: > 5 years experienced Testmanager provided, resources with certification 50%: between 2 and 5 years exeperience with certification 0%: < 2 yearsexperience, No certification | K10: 0% | L10: 0.00%
A11: 3 | B11: Meeting the Scope of Work Required | C11: Non Functional | D11: Resource Experience with Eskoms Testing tools | E11: Testing | F11: Must be HP ALM, UFT and Load Runner | G11: Very important | H11: =IF(G11='[2]Priority Ratings'!$C$21,'[2]Priority Ratings'!$B$21,IF(G11='[2]Priority Ratings'!$C$22,'[2]Priority Ratings'!$B$22,IF(G11='[2]Priority Ratings'!$C$23,'[2]Priority Ratings'!$B$23,IF(G11='[2]Priority Ratings'!$C$24,'[2]Priority Ratings'!$B$24,IF(G11='[2]Priority Ratings'!$C$25,'[2]Priority Ratings'!$B$25,IF(G11='[2]Priority Ratings'!$C$26,'[2]Priority Ratings'!$B$26,IF(G11='[2]Priority Ratings'!$C$27,'[2]Priority Ratings'!$B$27,"No Rating"))))))) -> 4 | J11: 100%: 5 years experience on one of the tools 50%: between 2 and 5 years exeperience 0%: < 2 years experience | K11: 0% | L11: 0.00%
A12: 4 | B12: Meeting the Scope of Work Required | C12: Non Functional | D12: Your testing approach specific to the project with refence to a methodology | E12: Testing | F12: Tenderer must provide approach | G12: Very important | H12: =IF(G12='[2]Priority Ratings'!$C$21,'[2]Priority Ratings'!$B$21,IF(G12='[2]Priority Ratings'!$C$22,'[2]Priority Ratings'!$B$22,IF(G12='[2]Priority Ratings'!$C$23,'[2]Priority Ratings'!$B$23,IF(G12='[2]Priority Ratings'!$C$24,'[2]Priority Ratings'!$B$24,IF(G12='[2]Priority Ratings'!$C$25,'[2]Priority Ratings'!$B$25,IF(G12='[2]Priority Ratings'!$C$26,'[2]Priority Ratings'!$B$26,IF(G12='[2]Priority Ratings'!$C$27,'[2]Priority Ratings'!$B$27,"No Rating"))))))) -> 4 | J12: 100%: Complete approach provided with reference to a methodology 50%: Approach provided with no reference to a methodology 0%: No approach provided | K12: 0% | L12: 0.00%
A13: 5 | B13: Meeting the Scope of Work Required | C13: Non Functional | D13: Solid Testing capability (reference projects & sites and methodologies used) | E13: Testing | F13: Provide written reference from customers and sites | G13: Very important | H13: =IF(G13='[2]Priority Ratings'!$C$21,'[2]Priority Ratings'!$B$21,IF(G13='[2]Priority Ratings'!$C$22,'[2]Priority Ratings'!$B$22,IF(G13='[2]Priority Ratings'!$C$23,'[2]Priority Ratings'!$B$23,IF(G13='[2]Priority Ratings'!$C$24,'[2]Priority Ratings'!$B$24,IF(G13='[2]Priority Ratings'!$C$25,'[2]Priority Ratings'!$B$25,IF(G13='[2]Priority Ratings'!$C$26,'[2]Priority Ratings'!$B$26,IF(G13='[2]Priority Ratings'!$C$27,'[2]Priority Ratings'!$B$27,"No Rating"))))))) -> 4 | J13: 100%:Fully comply with requirement 50%: Capability shown but no refence to sites 0%: No experience | K13: 0% | L13: 0.00%
A14: 6 | B14: Meeting the Scope of Work Required | C14: Non Functional | D14: Previous experience in implementation of Oracle Fusion integration solutions in an enterprise | E14: Integration | F14: Please provide reference projects & sites and pattern your previous experience covers | G14: Very important | H14: =IF(G14='[3]Priority Ratings'!$C$21,'[3]Priority Ratings'!$B$21,IF(G14='[3]Priority Ratings'!$C$22,'[3]Priority Ratings'!$B$22,IF(G14='[3]Priority Ratings'!$C$23,'[3]Priority Ratings'!$B$23,IF(G14='[3]Priority Ratings'!$C$24,'[3]Priority Ratings'!$B$24,IF(G14='[3]Priority Ratings'!$C$25,'[3]Priority Ratings'!$B$25,IF(G14='[3]Priority Ratings'!$C$26,'[3]Priority Ratings'!$B$26,IF(G14='[3]Priority Ratings'!$C$27,'[3]Priority Ratings'!$B$27,"No Rating"))))))) -> 4 | J14: 100%: Experience in Oracle Fusion Implementation 0%: No experience in Oracle Fusion | K14: 0% | L14: 0.00%
A15: 7 | B15: Meeting the Scope of Work Required | C15: Non Functional | D15: Previous experience in implementation of DataPower integration solutions in an enterprise | E15: Integration | F15: Please provide reference projects & sites and pattern your previous experience covers | G15: Very important | H15: =IF(G15='[3]Priority Ratings'!$C$21,'[3]Priority Ratings'!$B$21,IF(G15='[3]Priority Ratings'!$C$22,'[3]Priority Ratings'!$B$22,IF(G15='[3]Priority Ratings'!$C$23,'[3]Priority Ratings'!$B$23,IF(G15='[3]Priority Ratings'!$C$24,'[3]Priority Ratings'!$B$24,IF(G15='[3]Priority Ratings'!$C$25,'[3]Priority Ratings'!$B$25,IF(G15='[3]Priority Ratings'!$C$26,'[3]Priority Ratings'!$B$26,IF(G15='[3]Priority Ratings'!$C$27,'[3]Priority Ratings'!$B$27,"No Rating"))))))) -> 4 | J15: 100%: Good Experience in Data Power Implementation 0%: No experience in Data Power Implementation | K15: 0% | L15: 0.00%
A16: 8 | B16: Meeting the Scope of Work Required | C16: Non Functional | D16: Team has the required certifications for Oracle Fusion 12C | E16: Integration | F16: (Provide Certificate) acquired through permanent resources or partnership. Capability of at least 1 senior certified resource must have working experience in the technology? | G16: Show stopper | H16: =VLOOKUP(G16,'[3]Priority Ratings'!M23:N29,2,FALSE) -> 6 | J16: 100%: Good Experience with certification 50%: Certification without experience 0%: No experience, No certification | K16: 0% | L16: 0.00%
A17: 9 | B17: Meeting the Scope of Work Required | C17: Non Functional | D17: Team has the required certifications IBM Data Power | E17: Integration | F17: (Provide Certificate) acquired through permanent resources or partnership. Capability of at least 1 senior certified resource must have working experience in the technology? | G17: Very important | H17: =IF(G17='[3]Priority Ratings'!$C$21,'[3]Priority Ratings'!$B$21,IF(G17='[3]Priority Ratings'!$C$22,'[3]Priority Ratings'!$B$22,IF(G17='[3]Priority Ratings'!$C$23,'[3]Priority Ratings'!$B$23,IF(G17='[3]Priority Ratings'!$C$24,'[3]Priority Ratings'!$B$24,IF(G17='[3]Priority Ratings'!$C$25,'[3]Priority Ratings'!$B$25,IF(G17='[3]Priority Ratings'!$C$26,'[3]Priority Ratings'!$B$26,IF(G17='[3]Priority Ratings'!$C$27,'[3]Priority Ratings'!$B$27,"No Rating"))))))) -> 4 | J17: 100%: Good Experience with certification 50%: Certification without experience 0%: No experience, No certification | K17: 0% | L17: 0.00%
A18: 10 | B18: Meeting the Scope of Work Required | C18: Non Functional | D18: Previous experence in carrying out analysis, design, development, testing and deployment of Oracle Fusion and Datapower integration services | E18: Integration | F18: Provide proof that you have implemented a solution where the following items were delivered: analysis, design, develop, test and deploy integration solutions. Provide references | G18: Very important | H18: =IF(G18='[3]Priority Ratings'!$C$21,'[3]Priority Ratings'!$B$21,IF(G18='[3]Priority Ratings'!$C$22,'[3]Priority Ratings'!$B$22,IF(G18='[3]Priority Ratings'!$C$23,'[3]Priority Ratings'!$B$23,IF(G18='[3]Priority Ratings'!$C$24,'[3]Priority Ratings'!$B$24,IF(G18='[3]Priority Ratings'!$C$25,'[3]Priority Ratings'!$B$25,IF(G18='[3]Priority Ratings'!$C$26,'[3]Priority Ratings'!$B$26,IF(G18='[3]Priority Ratings'!$C$27,'[3]Priority Ratings'!$B$27,"No Rating"))))))) -> 4 | J18: 100%: Experience in analysis, design, development, testing and deployment of Oracle Fusion and Data Power 50%: Experience in analysis, design, development, testing and deployment of Oracle Fusion or Data Power 0%: No experience | K18: 0% | L18: 0.00%
A19: 11 | B19: Meeting the Scope of Work Required | C19: Non Functional | D19: Previous experience in implementation of Oracle Fusion and DataPower integration solutions at enterprise level is required. Please provide references on experience by the tenderer for both technologies. Tenderer must provide proof that their product has the ability to expose business services to enable integration capabilities. Evidence required - Provide name(s) of the companies where the solution was implemented together with contact persons & details. | E19: Integration | F19: Provide proof that you have implemented a solution where the following items were delivered: analysis, design, develop, test and deploy integration solutions. Provide references | G19: Very important | H19: =IF(G19='[3]Priority Ratings'!$C$21,'[3]Priority Ratings'!$B$21,IF(G19='[3]Priority Ratings'!$C$22,'[3]Priority Ratings'!$B$22,IF(G19='[3]Priority Ratings'!$C$23,'[3]Priority Ratings'!$B$23,IF(G19='[3]Priority Ratings'!$C$24,'[3]Priority Ratings'!$B$24,IF(G19='[3]Priority Ratings'!$C$25,'[3]Priority Ratings'!$B$25,IF(G19='[3]Priority Ratings'!$C$26,'[3]Priority Ratings'!$B$26,IF(G19='[3]Priority Ratings'!$C$27,'[3]Priority Ratings'!$B$27,"No Rating"))))))) -> 4 | J19: 100%: Experience in analysis, design, development, testing and deployment of Oracle Fusion and Data Power 50%: Experience in analysis, design, development, testing and deployment of Oracle Fusion or Data Power 0%: No experience | K19: 0% | L19: 0.00%
A20: 12 | B20: Meeting the Scope of Work Required | C20: Non Functional | D20: What is the structure of the message? Is it a proprietary file, is it in a Database? If this information is PUSHED by Source, can the Source send to Integration a Common Information Message (CIM) or they can only send a proprietory message structure? (Proprietory – Applications own business service message structure) | E20: Integration | F20: Provide the capability of the Application | G20: Very important | H20: =VLOOKUP(G20,'[3]Priority Ratings'!M27:N33,2,FALSE) -> 4 | J20: 100%:Source can send a Common information message (CIM) structure 50%: The Source can send only a proprietary message structure 0%: Neither | K20: 0% | L20: 0.00%
A21: 13 | B21: Meeting the Scope of Work Required | C21: Non Functional | D21: What type of channel security does Source Application support, i.e. One-Way or Two-Way certificate (SSL/TLS) to secure the channel? | E21: Integration | F21: Provide the security capability | G21: Very important | H21: =VLOOKUP(G21,'[3]Priority Ratings'!M27:N33,2,FALSE) -> 4 | J21: 100%:Source Supports a secure channel of communication 0%: Source supports no secure channel of communicaiton | K21: 0% | L21: 0.00%
A22: 14 | B22: Meeting the Scope of Work Required | C22: Non Functional | D22: What type of authentication security does Source support, i.e. Basic Authentication for Web Services, Database or SFTP? | E22: Integration | F22: Provide the Authentication capability | G22: Very important | H22: =VLOOKUP(G22,'[3]Priority Ratings'!M27:N33,2,FALSE) -> 4 | J22: 100%:Source can apply Basic Authentication for Web Services, Database and SFTP 50%: The Source can only apply Basic Suthentication on Database or SFTP 0%: Neither | K22: 0% | L22: 0.00%
A23: 15 | B23: Meeting the Scope of Work Required | C23: Non Functional | D23: Can Integration reply to the Source Application with a full service response (pre-defined message structure) in case Source Application is invoking an Integration Web Service or the Source can only handle HTTP/SOAP responses? | E23: Integration | F23: Provide the Basic Authentication capability | G23: Very important | H23: =VLOOKUP(G23,'[3]Priority Ratings'!M27:N33,2,FALSE) -> 4 | J23: 100%:Source can accept full service response 50%: The Source can accept HTTP/SOAP response 0%: Neither | K23: 0% | L23: 0.00%
A24: 16 | B24: Meeting the Scope of Work Required | C24: Non Functional | D24: Is the Source Application capable of retrying a message if there are connection errors in Integration or Target and they have received a service response or HTTP response? Source Application can distinguish between Technical and Business error, and handle each one in a seperate manor IF Database, Have a separate column in the table where errors can be written, and column for a flag (Successful, technical error, business error) | E24: Integration | F24: Provide The Retry capability | G24: Very important | H24: =VLOOKUP(G24,'[3]Priority Ratings'!M27:N33,2,FALSE) -> 4 | J24: 100%:Source can handles Technical and Business error seperately and can cater for separate columns in the Database for errors and a flag 50%: The Source handles Technical and Business errors in one manor or can only cater for the Database flag or comments field 0%: The Source cannot cater for any re-tries | K24: 0% | L24: 0.00%
A25: 15 | B25: Meeting the Scope of Work Required | C25: Non Functional | D25: Confirm the list of integration services that need to be built is clearly understood | E25: Integration | F25: The solution should be able to integrate to applications for purposes of actioning or addressing queries via the defined intergration technology Oracle Fusion and IBM Datapower. (As defined in the Architectural integration highlevel requirements). | G25: Very important | H25: =VLOOKUP(G25,'[3]Priority Ratings'!M27:N33,2,FALSE) -> 4 | J25: 100%: Fully comply with requirement 0%: No compliance | K25: 0% | L25: 0.00%
A27: A 70% threshold will be considered meeting the minimum requirement. | K27: =SUM(K10:K26) -> 0%
